[Event "Gibraltar Amateurs B 2020"]
[Site "Caleta"]
[Date "2020.01.27"]
[Round "4.2"]
[White "Anjali R. Sagar"]
[Black "Bryant, Richard B E"]
[Result "0-1"]
[ECO "C06"]
[WhiteElo "1775"]
[BlackElo "1849"]
[Annotator "NA"]
[PlyCount "54"]
[EventDate "2020.01.20"]
[EventType "swiss"]
[EventCountry "GGB"]
[SourceTitle "playchess.com"]
[Source "ChessBase"]
[SourceQuality "1"]
[TimeControl "6600+10"]

1. e4 {[%emt 0:00:00]} e6 {[%emt 0:00:00]} 2. d4 {[%emt 0:00:03]} d5 {[%emt 0:00:00]} 3. Nd2 {[%emt 0:00:11]} Nf6 {[%emt 0:00:06]} 4. e5 {[%emt 0:00:12]} Nfd7 {[%emt 0:00:05]} 5. Bd3 {[%emt 0:00:12]} c5 {[%emt 0:00:05]} 6. c3 {[%emt 0:00:12]} Nc6 {[%emt 0:00:07]} 7. Ne2 {[%emt 0:00:10]} cxd4 {[%emt 0:00:08]} 8. cxd4 {[%emt 0:00:09]} f6 {[%emt 0:00:07]} 9. exf6 {[%emt 0:00:12]} Nxf6 {[%emt 0:00:06]} 10. Nf3 {[%emt 0:00:20]} Bd6 {[%emt 0:00:13]} 11. O-O {[%emt 0:01:28]} Qc7 {[%emt 0:00:09]} 12. g3 {[%emt 0:01:06]} O-O {[%emt 0:00:35]} 13. Bf4 {[%emt 0:00:26]} Bd7 {[%emt 0:03:24]} 14. Rc1 {[%emt 0:01:54]} Ne4 {[%emt 0:10:02] C06: French Tarrasch: 3...Nf6 4 e5 Nfd7 5 Bd3 main lines} 15. Ne5 {[%emt 0:05:16] [#]} Be8 $146 {[%emt 0:01:50]} ({Predecessor:} 15... Bxe5 16. Bxe5 Qb6 17. Nf4 Rad8 18. Bxe4 dxe4 19. Bd6 Rf7 20. b4 Qxd4 21. b5 Ne5 22. Qxd4 {0-1 (35) Gomez,J (2522)-Ganguly,S (2644) Guangzhou 2010}) 16. Bxe4 {[%emt 0:12:26]} dxe4 {[%emt 0:00:09]} 17. Qc2 {[%emt 0:04:49]} Qe7 {[%emt 0:03:55]} 18. Qxe4 {[%emt 0:03:54]} Rd8 {[%emt 0:01:02]} 19. Qe3 {[%emt 0:04:33]} h6 {[%emt 0:00:19]} 20. Nxc6 {[%emt 0:09:46]} Bxc6 {[%emt 0:00:50]} 21. Bxd6 $14 {[%emt 0:02:21]} Rxd6 {[%emt 0:03:20]} 22. Nf4 {[%emt 0:07:50]} Qf7 {[%emt 0:20:44]} 23. Qe5 {[%emt 0:07:04]} Rfd8 {[%emt 0:02:55]} 24. Rfd1 {[%emt 0:09:28]} g5 {[%emt 0:01:04]} 25. d5 {[%emt 0:10:54]} gxf4 {[%emt 0:00:56]} 26. Rxc6 {[%emt 0:09:22]} bxc6 {[%emt 0:00:36]} 27. Rd4 {[%emt 0:02:38]} Rxd5 {[%emt 0:01:12]} 0-1

[Event "Gibraltar Amateurs B 2020"]
[Site "Caleta"]
[Date "2020.01.27"]
[Round "4.3"]
[White "Greco, Joseph"]
[Black "Hari Charan Sai Kalluri"]
[Result "0-1"]
[ECO "B24"]
[WhiteElo "1691"]
[BlackElo "1836"]
[Annotator "NA"]
[PlyCount "136"]
[EventDate "2020.01.20"]
[EventType "swiss"]
[EventCountry "GGB"]
[SourceTitle "playchess.com"]
[Source "ChessBase"]
[SourceQuality "1"]
[TimeControl "6600+10"]

1. e4 {[%emt 0:02:04]} c5 {[%emt 0:00:00]} 2. Nc3 {[%emt 0:00:10]} Nc6 {[%emt 0:00:00]} 3. g3 {[%emt 0:00:07]} g6 {[%emt 0:00:06]} 4. Bg2 {[%emt 0:00:05]} Bg7 {[%emt 0:00:05]} 5. f4 {[%emt 0:00:14]} d6 {[%emt 0:00:13]} 6. h3 {[%emt 0:00:32] B24: Closed Sicilian: 3 g3 sidelines} (6. Nf3 e6 7. O-O Nge7 8. d3 Rb8 9. Be3 Nd4 10. Bf2 Nec6 11. Nxd4 Nxd4 12. Qd2 O-O 13. Nd1 b6 14. c3 Nc6 15. d4 cxd4 16. cxd4 Bb7 17. Nc3 Rc8 18. Rac1 Re8 19. d5 exd5 20. Nxd5 Ne7 21. Rxc8 Bxc8 {1-0 (63) Anand,V (2759)-Vachier Lagrave,M (2789) Leuven 2018}) 6... Nf6 {[%emt 0:00:20]} 7. Nf3 {[%emt 0:04:52]} Nh5 {[%emt 0:00:27]} 8. Ne2 {[%emt 0:00:46]} e5 {[%emt 0:07:05]} 9. d3 {[%emt 0:02:37]} f5 $146 {[%emt 0:03:11]} ({Predecessor:} 9... exf4 10. gxf4 f5 11. O-O O-O 12. exf5 Bxf5 13. Kh2 {½-½ (67) Makolli,P (2284)-Keinanen,T (2402) Batumi 2018}) 10. c3 {[%emt 0:03:30]} Qe7 {[%emt 0:02:59]} 11. Be3 {[%emt 0:03:13]} O-O {[%emt 0:00:32]} 12. O-O {[%emt 0:19:25]} Be6 {[%emt 0:16:01]} (12... fxe4 $15 13. dxe4 Nxg3 {[%mdl 64] Remove Defender} 14. Nxg3 exf4) 13. Ng5 {[%emt 0:03:08]} Bd7 {[%emt 0:03:14]} 14. exf5 {[%emt 0:09:52]} gxf5 {[%emt 0:02:34]} 15. Bd5+ {[%emt 0:01:01]} Kh8 {[%emt 0:00:20]} 16. Qd2 {[%emt 0:19:27]} Nf6 {[%emt 0:03:34]} 17. Bb3 {[%emt 0:03:39]} a5 {[%emt 0:13:01]} 18. a4 {[%emt 0:05:33]} h6 {[%emt 0:10:30]} 19. Nf3 {[%emt 0:00:17]} e4 {[%emt 0:04:28]} 20. Nh4 {[%emt 0:00:50]} Kh7 {[%emt 0:00:12]} 21. d4 {[%emt 0:01:30]} b6 {[%emt 0:07:27]} 22. Rfd1 {[%emt 0:01:36]} Rad8 {[%emt 0:02:16]} 23. Bc4 {[%emt 0:04:59]} d5 {[%emt 0:02:16]} 24. Bb5 {[%emt 0:02:15]} Qd6 {[%emt 0:02:14]} 25. b3 {[%emt 0:03:54]} Be6 {[%emt 0:00:42]} 26. Rac1 {[%emt 0:00:33]} Na7 {[%emt 0:01:00]} 27. Ba6 {[%emt 0:00:46]} Rf7 {[%emt 0:03:08]} 28. Rb1 {[%emt 0:01:10]} Qc6 {[%emt 0:03:39]} (28... Nh5 $17) 29. Qc2 {[%emt 0:01:14]} ({White should play} 29. Qe1 $11) 29... c4 {[%emt 0:05:10]} 30. bxc4 {[%emt 0:00:23]} dxc4 {[%emt 0:00:05]} 31. Rb2 {[%emt 0:02:48]} Nd5 {[%emt 0:00:35]} 32. Ng2 {[%emt 0:00:05]} Nc7 {[%emt 0:00:58]} 33. Bb5 {[%emt 0:02:58]} Naxb5 {[%emt 0:00:27]} 34. axb5 {[%emt 0:00:15]} Qe8 {[%emt 0:00:26]} 35. Qa4 {[%emt 0:01:21]} Rd5 {[%emt 0:02:02]} (35... Nd5 $19 36. Kh2 Bf6) 36. Rdb1 {[%emt 0:00:48]} (36. Bf2 $17 {keeps fighting.}) 36... Bd7 {[%emt 0:01:34]} 37. Qxc4 {[%emt 0:01:26]} Bxb5 {[%emt 0:00:07]} 38. Qb3 {[%emt 0:00:59]} Bd3 {[%emt 0:00:59]} 39. Rc1 {[%emt 0:00:41]} b5 {[%emt 0:00:14]} 40. Bf2 {[%emt 0:00:23]} a4 {[%emt 0:00:52]} 41. Qa2 {[%emt 0:00:28]} (41. Qd1 $142) 41... Bc4 {[%emt 0:00:31]} 42. Qa1 {[%emt 0:00:24]} Rd8 {[%emt 0:01:43]} 43. Ne3 {[%emt 0:00:21]} Bd3 {[%emt 0:00:02]} 44. c4 {[%emt 0:00:54]} (44. Re1 $142) 44... Bxe2 {[%emt 0:02:42]} 45. Rxe2 {[%emt 0:00:30]} Bxd4 {[%emt 0:00:51]} 46. Qa3 {[%emt 0:00:01]} Bg7 {[%emt 0:01:53]} 47. cxb5 {[%emt 0:00:59]} Qxb5 {[%emt 0:00:02]} 48. Ra2 {[%emt 0:00:26]} Rd4 {[%emt 0:02:32]} 49. Rc5 {[%emt 0:00:15]} Qd7 $2 {[%emt 0:00:50]} (49... Qb3 $19 50. Rc3 Qe6) 50. Rc4 {[%emt 0:00:25]} Rxc4 {[%emt 0:00:52]} 51. Nxc4 {[%emt 0:00:00]} Bd4 {[%emt 0:00:11]} 52. Ne5 {[%emt 0:00:35]} Bxe5 {[%emt 0:00:24]} 53. fxe5 {[%emt 0:00:02]} Qd5 {[%emt 0:00:25]} 54. Qxa4 {[%emt 0:00:33]} Qxe5 {[%emt 0:00:02]} 55. Ra3 {[%emt 0:00:32]} f4 {[%emt 0:00:09]} 56. Qc2 {[%emt 0:00:24]} Kg8 {[%emt 0:00:32]} 57. Rb3 {[%emt 0:00:14]} e3 {[%emt 0:00:10]} (57... Ne6 $17 58. Qc8+ Rf8) 58. Qg6+ {[%emt 0:00:12]} Kf8 {[%emt 0:00:25]} 59. Rb8+ {[%emt 0:00:31]} Ke7 {[%emt 0:00:01]} 60. Be1 {[%emt 0:00:08]} f3 {[%emt 0:00:02]} 61. Bb4+ {[%emt 0:00:02]} Kd7 {[%emt 0:00:14]} 62. Qd3+ {[%emt 0:00:08]} Qd5 {[%emt 0:00:17]} 63. Qxd5+ {[%emt 0:00:33]} Nxd5 {[%emt 0:00:01]} 64. Rb7+ {[%emt 0:00:00]} Nc7 {[%emt 0:00:12]} 65. Kf1 {[%emt 0:00:26]} f2 {[%emt 0:00:01]} 66. Ba5 {[%emt 0:00:17]} e2+ {[%emt 0:00:05]} 67. Kxe2 {[%emt 0:00:05]} f1=Q+ {[%emt 0:00:04]} 68. Kd2 {[%emt 0:00:04]} Qg2+ {[%emt 0:00:06]} 0-1

[Event "Gibraltar Amateurs B 2020"]
[Site "Caleta"]
[Date "2020.01.27"]
[Round "4.4"]
[White "Campuzano, Franco"]
[Black "Salas Martin, Javier"]
[Result "1-0"]
[ECO "E67"]
[WhiteElo "1785"]
[BlackElo "1738"]
[Annotator "NA"]
[PlyCount "73"]
[EventDate "2020.01.20"]
[EventType "swiss"]
[EventCountry "GGB"]
[SourceTitle "playchess.com"]
[Source "ChessBase"]
[SourceQuality "1"]
[TimeControl "6600+10"]

1. Nf3 {[%emt 0:00:00]} d6 {[%emt 0:00:20]} 2. d4 {[%emt 0:00:51]} Nf6 {[%emt 0:00:32]} 3. g3 {[%emt 0:00:18]} g6 {[%emt 0:00:09]} 4. Bg2 {[%emt 0:00:05]} Bg7 {[%emt 0:00:06]} 5. O-O {[%emt 0:00:28]} O-O {[%emt 0:01:24]} 6. c4 {[%emt 0:01:25]} c6 {[%emt 0:00:58]} 7. Nc3 {[%emt 0:02:31]} Nbd7 {[%emt 0:01:27]} 8. Bf4 {[%emt 0:02:07]} Re8 {[%emt 0:01:44]} 9. e4 {[%emt 0:01:15]} Nh5 {[%emt 0:04:27]} 10. Be3 {[%emt 0:11:36]} e5 {[%emt 0:05:02]} 11. d5 {[%emt 0:01:56]} c5 {[%emt 0:05:58]} 12. a3 {[%emt 0:06:48]} b6 {[%emt 0:10:46]} 13. b4 {[%emt 0:07:46]} Bf8 {[%emt 0:05:23]} 14. Ne1 {[%emt 0:11:00]} Ng7 {[%emt 0:08:29]} 15. Nd3 {[%emt 0:05:27]} f5 {[%emt 0:01:35]} 16. Qd2 {[%emt 0:00:43]} Nf6 {[%emt 0:04:50]} 17. Bg5 {[%emt 0:00:58]} Be7 {[%emt 0:01:53]} 18. Rad1 {[%emt 0:03:37]} Nxe4 {[%emt 0:11:45]} 19. Nxe4 {[%emt 0:01:17]} fxe4 {[%emt 0:00:18]} 20. Bxe7 {[%emt 0:00:16]} Qxe7 {[%emt 0:00:24]} 21. Bxe4 {[%emt 0:00:16]} Nf5 {[%emt 0:00:45]} 22. bxc5 {[%emt 0:00:37]} bxc5 {[%emt 0:02:56]} 23. Nxc5 {[%emt 0:00:43]} Nd4 {[%emt 0:01:04]} 24. Ne6 {[%emt 0:03:49]} Bxe6 {[%emt 0:03:27]} 25. dxe6 {[%emt 0:07:25]} Rad8 {[%emt 0:02:13]} 26. Bd5 {[%emt 0:01:48]} Kg7 {[%emt 0:00:31]} 27. f4 {[%emt 0:01:56]} Rf8 {[%emt 0:03:59]} 28. fxe5 {[%emt 0:04:32]} Nxe6 {[%emt 0:07:39]} 29. exd6 {[%emt 0:04:33]} Rxd6 {[%emt 0:05:41]} 30. Qc3+ {[%emt 0:02:58]} Kh6 {[%emt 0:00:57]} 31. Qe5 {[%emt 0:01:58]} Rxd5 {[%emt 0:03:52]} 32. cxd5 {[%emt 0:01:49]} Qc5+ {[%emt 0:00:35]} 33. Kh1 {[%emt 0:00:45]} Rxf1+ {[%emt 0:02:09]} 34. Rxf1 {[%emt 0:00:15]} Nd4 {[%emt 0:02:21]} 35. Qf4+ {[%emt 0:00:51]} Kg7 {[%emt 0:00:26]} 36. Qf6+ {[%emt 0:01:26]} Kh6 {[%emt 0:00:23]} 37. Qf8+ {[%emt 0:00:19]} 1-0

[Event "Gibraltar Amateurs B 2020"]
[Site "Caleta"]
[Date "2020.01.27"]
[Round "4.5"]
[White "Bowman, Richard L"]
[Black "Nash, Damian"]
[Result "1/2-1/2"]
[ECO "A25"]
[WhiteElo "1740"]
[BlackElo "1890"]
[Annotator "NA"]
[PlyCount "81"]
[EventDate "2020.01.20"]
[EventType "swiss"]
[EventCountry "GGB"]
[SourceTitle "playchess.com"]
[Source "ChessBase"]
[SourceQuality "1"]
[TimeControl "6600+10"]

1. c4 {[%emt 0:00:00]} Nc6 {[%emt 0:01:08]} 2. Nc3 {[%emt 0:00:16]} e5 {[%emt 0:00:43]} 3. g3 {[%emt 0:00:11]} f5 {[%emt 0:03:45]} 4. Bg2 {[%emt 0:01:59]} Nf6 {[%emt 0:00:09]} 5. d3 {[%emt 0:00:53]} Bb4 {[%emt 0:03:19]} 6. Qb3 {[%emt 0:04:34] A25: English Opening vs King's Indian with ...Nc6 but without early d3} (6. Bd2 O-O 7. Nd5 Bxd2+ 8. Qxd2 d6 9. e3 Be6 10. Ne2 Bxd5 11. cxd5 Ne7 12. e4 c6 13. dxc6 bxc6 14. O-O Qb6 15. Rac1 {1-0 (41) Rodshtein,M (2699)-Amin,B (2704) Brest 2019}) 6... Nd4 {[%emt 0:03:19]} 7. Qd1 {[%emt 0:00:51]} O-O $146 {[%emt 0:01:22]} ({Predecessor:} 7... Bxc3+ 8. bxc3 Nc6 9. Qb3 d6 10. Rb1 O-O 11. e3 e4 12. d4 Na5 13. Qa4 c5 {0-1 (28) Szakall,A (1928)-Detko,J (2139) Slovakia 2016}) 8. a3 {[%emt 0:00:37]} Bxc3+ {[%emt 0:02:59]} 9. bxc3 {[%emt 0:00:10]} Ne6 {[%emt 0:00:36]} 10. Nf3 {[%emt 0:07:43]} d6 {[%emt 0:01:29]} 11. Ng5 {[%emt 0:05:41]} c6 {[%emt 0:03:20]} 12. Rb1 {[%emt 0:01:03]} Nxg5 {[%emt 0:04:59]} 13. Bxg5 {[%emt 0:00:07]} Qe8 {[%emt 0:02:06]} 14. Bxf6 {[%emt 0:02:09]} Rxf6 {[%emt 0:01:12]} 15. e4 {[%emt 0:05:56]} (15. e3 $11) 15... f4 {[%emt 0:09:04]} 16. f3 {[%emt 0:03:26]} b6 {[%emt 0:04:53]} 17. d4 {[%emt 0:01:12]} c5 {[%emt 0:10:13]} 18. d5 {[%emt 0:04:11]} Bd7 {[%emt 0:01:22]} (18... fxg3 $17 19. hxg3 Ba6) 19. g4 {[%emt 0:01:21]} Qg6 {[%emt 0:06:17]} 20. h4 {[%emt 0:00:59]} h6 {[%emt 0:03:08]} 21. Bh3 {[%emt 0:00:32]} Rd8 {[%emt 0:04:45]} 22. Qe2 {[%emt 0:09:43]} Qh7 {[%emt 0:03:24]} 23. g5 {[%emt 0:05:58]} Rf7 {[%emt 0:06:56]} 24. Be6 {[%emt 0:01:20]} Bxe6 {[%emt 0:00:56]} 25. dxe6 {[%emt 0:00:04]} Re7 {[%emt 0:00:34]} 26. Kd2 {[%emt 0:00:10]} h5 {[%emt 0:01:55]} 27. a4 {[%emt 0:01:45]} Qg6 {[%emt 0:02:21]} 28. Rb5 {[%emt 0:01:17]} Qxe6 {[%emt 0:00:12]} 29. Ra1 {[%emt 0:00:29]} Qh3 {[%emt 0:01:34]} 30. Qf2 {[%emt 0:00:58]} g6 {[%emt 0:02:24]} 31. a5 {[%emt 0:00:16]} bxa5 {[%emt 0:00:13]} 32. Raxa5 {[%emt 0:00:18]} Kf7 {[%emt 0:02:00]} 33. Ra6 {[%emt 0:03:56]} Rdd7 {[%emt 0:00:46]} 34. Kc2 {[%emt 0:01:49]} Rd8 {[%emt 0:01:49]} 35. Qd2 {[%emt 0:06:53]} Red7 {[%emt 0:05:35]} 36. Rb7 {[%emt 0:03:51]} Qxf3 {[%emt 0:01:10]} 37. Qd5+ {[%emt 0:00:15]} Kf8 {[%emt 0:01:42]} 38. Rxd6 {[%emt 0:00:18]} Qe2+ {[%emt 0:01:42] [#]} 39. Kc1 $1 {[%emt 0:01:00]} Qe3+ {[%emt 0:01:02] [#]} 40. Kc2 $1 {[%emt 0:01:13]} Qf2+ {[%emt 0:01:38] [#]} 41. Kc1 $11 {[%emt 0:00:13]} 1/2-1/2

[Event "Gibraltar Amateurs B 2020"]
[Site "Caleta"]
[Date "2020.01.27"]
[Round "4.6"]
[White "Teh, Wee Zhun"]
[Black "Martos Martin, Jose Angel"]
[Result "1-0"]
[ECO "E73"]
[WhiteElo "1857"]
[BlackElo "1841"]
[Annotator "NA"]
[PlyCount "177"]
[EventDate "2020.01.20"]
[EventType "swiss"]
[EventCountry "GGB"]
[SourceTitle "playchess.com"]
[Source "ChessBase"]
[SourceQuality "1"]
[TimeControl "6600+10"]

1. d4 {[%emt 0:00:00]} Nf6 {[%emt 0:00:09]} 2. c4 {[%emt 0:00:01]} g6 {[%emt 0:00:10]} 3. Nc3 {[%emt 0:00:08]} Bg7 {[%emt 0:00:05]} 4. e4 {[%emt 0:00:04]} d6 {[%emt 0:00:06]} 5. Be2 {[%emt 0:00:09]} O-O {[%emt 0:00:10]} 6. Be3 {[%emt 0:00:07]} Nc6 {[%emt 0:00:11]} 7. d5 {[%emt 0:00:19]} Ne5 {[%emt 0:00:22] E73: King's Indian: Averbakh Variation without 6...c5} 8. h3 {[%emt 0:00:13]} e6 {[%emt 0:00:54]} (8... c6 9. Nf3 Nxf3+ 10. Bxf3 Nd7 11. Be2 Qa5 12. Bd4 Bh6 13. f3 c5 14. Bf2 b5 15. cxb5 {1-0 (38) Ganguly,S (2633)-Guseinov,G (2666) Moscow 2019}) 9. Nf3 {[%emt 0:01:25]} Nxf3+ {[%emt 0:00:41]} 10. Bxf3 {[%emt 0:00:08]} exd5 {[%emt 0:00:13]} 11. cxd5 {[%emt 0:00:27]} Nd7 $146 {[%emt 0:01:42]} ({Predecessor:} 11... Re8 12. O-O Bd7 13. Re1 b5 14. a3 a6 15. Qd2 {0-1 (63) Krueger,E (2060)-Habermann,A (1930) Bad Bevensen 2011}) 12. O-O {[%emt 0:01:11]} Re8 {[%emt 0:01:05]} 13. Rc1 {[%emt 0:01:40]} a5 {[%emt 0:03:10]} 14. Nb5 {[%emt 0:05:38]} Nc5 {[%emt 0:15:17]} 15. Bxc5 {[%emt 0:01:17]} dxc5 {[%emt 0:04:46]} 16. Rxc5 {[%emt 0:00:34]} b6 {[%emt 0:11:45]} 17. Rc2 {[%emt 0:02:33]} Be5 {[%emt 0:10:35]} 18. Bg4 {[%emt 0:05:22]} Ba6 {[%emt 0:03:08]} 19. a4 {[%emt 0:15:24]} (19. Be2 $16) 19... Bxb5 {[%emt 0:12:28]} 20. axb5 {[%emt 0:00:03]} Bd6 {[%emt 0:00:12]} 21. Rc4 {[%emt 0:02:52]} Qf6 {[%emt 0:06:11]} 22. b3 {[%emt 0:01:34]} h5 {[%emt 0:21:05]} 23. Bd7 {[%emt 0:01:42]} Red8 {[%emt 0:08:11]} 24. Bc6 {[%emt 0:00:19]} Rab8 {[%emt 0:00:46]} 25. f4 {[%emt 0:01:07]} Qb2 {[%emt 0:00:16]} 26. Qf3 {[%emt 0:03:01]} Rf8 {[%emt 0:03:46]} 27. e5 {[%emt 0:03:49]} Bc5+ {[%emt 0:00:01]} 28. Kh1 {[%emt 0:00:49]} Qd2 {[%emt 0:00:06]} 29. f5 {[%emt 0:01:46]} Qe3 {[%emt 0:00:55]} 30. Re4 {[%emt 0:01:14]} Qg5 {[%emt 0:04:41]} 31. Qf4 {[%emt 0:00:53]} Qxf4 {[%emt 0:00:21]} 32. Rexf4 {[%emt 0:00:55]} g5 {[%emt 0:00:10]} 33. R4f3 {[%emt 0:00:50]} Kh7 {[%emt 0:00:19]} 34. f6 {[%emt 0:00:37]} Kg6 {[%emt 0:01:13]} 35. e6 {[%emt 0:01:57]} Bd4 {[%emt 0:00:12]} 36. e7 {[%emt 0:02:14]} Rh8 {[%emt 0:00:11]} 37. Re1 {[%emt 0:00:27]} Rhe8 {[%emt 0:00:03]} 38. Re4 {[%emt 0:03:59]} Bxf6 {[%emt 0:00:07]} 39. Bxe8 {[%emt 0:02:55]} Rxe8 {[%emt 0:00:01]} 40. g4 $2 {[%emt 0:00:13]} (40. Rfe3 $18 {and the rest is easy.}) 40... h4 {[%emt 0:00:32]} 41. Kg2 $2 {[%emt 0:01:34]} (41. Rfe3 $18 {is the precise move to win.} Kg7 42. Kg2) 41... Bb2 {[%emt 0:00:15]} 42. Rf5 {[%emt 0:06:24]} Bf6 {[%emt 0:00:18]} 43. Re2 $2 {[%emt 0:01:01]} (43. Rc4 $18 {is the precise move to win.}) 43... Rxe7 {[%emt 0:00:01]} 44. Rxe7 {[%emt 0:01:05]} Bxe7 {[%emt 0:00:01]} 45. Re5 {[%emt 0:00:45]} Bd6 {[%emt 0:00:03]} 46. Re8 {[%emt 0:00:13]} f6 {[%emt 0:00:10]} 47. Kf3 {[%emt 0:00:20]} Kf7 {[%emt 0:00:30]} 48. Rc8 {[%emt 0:01:01]} Kg6 {[%emt 0:00:12]} 49. Ke4 {[%emt 0:00:07]} Be5 {[%emt 0:00:04]} 50. Rd8 {[%emt 0:00:28]} Bg3 {[%emt 0:00:04]} 51. Rd7 {[%emt 0:00:51]} Be5 {[%emt 0:00:08]} 52. Re7 {[%emt 0:01:41]} Bh2 {[%emt 0:00:05]} 53. Re6 {[%emt 0:00:45]} Bg3 {[%emt 0:00:05]} 54. Kd4 {[%emt 0:07:51]} Bf4 {[%emt 0:00:21]} 55. Re2 {[%emt 0:00:19]} Bd6 {[%emt 0:00:00]} 56. Ke4 {[%emt 0:00:18]} Bg3 {[%emt 0:00:00]} 57. Re3 {[%emt 0:00:11]} Bf4 {[%emt 0:00:00]} 58. Rf3 {[%emt 0:00:07]} Bd6 {[%emt 0:00:00]} 59. Rf5 {[%emt 0:00:08]} Bg3 {[%emt 0:00:06]} 60. d6 {[%emt 0:00:41]} Bxd6 {[%emt 0:00:37]} 61. Kd5 {[%emt 0:00:05]} Kf7 {[%emt 0:00:17]} 62. Rf3 {[%emt 0:00:34]} Ke7 {[%emt 0:00:09]} 63. Re3+ {[%emt 0:00:17]} Kf7 {[%emt 0:00:11]} 64. Re2 {[%emt 0:00:20]} Bg3 {[%emt 0:00:08]} 65. Ke4 {[%emt 0:00:46]} Kg6 {[%emt 0:00:08]} 66. Rd2 {[%emt 0:00:11]} Bd6 {[%emt 0:00:19]} 67. Rd1 {[%emt 0:00:10]} Bf4 {[%emt 0:00:18]} 68. Rd7 {[%emt 0:00:08]} Bg3 {[%emt 0:00:15]} 69. Re7 {[%emt 0:00:40]} Bd6 {[%emt 0:00:13]} 70. Re6 {[%emt 0:00:12]} Bg3 {[%emt 0:00:01]} 71. Kd5 {[%emt 0:00:14]} Bh2 {[%emt 0:00:04]} 72. Re2 {[%emt 0:00:07]} Bd6 {[%emt 0:00:17]} 73. Ke6 {[%emt 0:00:05]} Bf4 {[%emt 0:00:08]} 74. Rf2 {[%emt 0:00:43]} Kg7 {[%emt 0:00:19]} 75. Rf3 {[%emt 0:00:37]} Kg6 {[%emt 0:00:05]} 76. Rf2 {[%emt 0:00:38]} Kg7 {[%emt 0:00:13]} 77. Rf1 {[%emt 0:00:11]} Kg6 {[%emt 0:00:03]} 78. Rd1 {[%emt 0:00:12]} Bd6 {[%emt 0:00:13]} 79. Rd5 {[%emt 0:00:04]} Kg7 {[%emt 0:00:19]} 80. Rf5 {[%emt 0:02:12]} Bg3 {[%emt 0:00:12]} 81. Rxf6 {[%emt 0:00:13]} Bf4 {[%emt 0:00:02]} 82. Kf5 {[%emt 0:00:40]} Bd2 {[%emt 0:00:15]} 83. Rc6 {[%emt 0:00:38]} Bf4 {[%emt 0:00:04]} 84. Rc4 $18 {[%emt 0:00:11]} Kf7 {[%emt 0:00:11]} 85. Rxf4 {[%emt 0:01:33]} gxf4 {[%emt 0:00:02]} 86. Kxf4 {[%emt 0:00:06]} Kg7 {[%emt 0:00:24]} 87. Ke5 {[%emt 0:00:18]} Kg6 {[%emt 0:00:05]} 88. Kd5 {[%emt 0:01:41]} Kf7 {[%emt 0:00:14]} 89. Ke4 {[%emt 0:00:16]} 1-0

[Event "Gibraltar Amateurs B 2020"]
[Site "Caleta"]
[Date "2020.01.27"]
[Round "4.7"]
[White "Sedgwick, David"]
[Black "Dennis, Nigel W"]
[Result "0-1"]
[ECO "B22"]
[WhiteElo "1894"]
[BlackElo "1784"]
[Annotator "NA"]
[PlyCount "116"]
[EventDate "2020.01.20"]
[EventType "swiss"]
[EventCountry "GGB"]
[SourceTitle "playchess.com"]
[Source "ChessBase"]
[SourceQuality "1"]
[TimeControl "6600+10"]

1. e4 {[%emt 0:01:04]} c5 {[%emt 0:00:00]} 2. c3 {[%emt 0:00:45]} d5 {[%emt 0:00:42]} 3. exd5 {[%emt 0:00:48]} Qxd5 {[%emt 0:00:12]} 4. d4 {[%emt 0:00:06]} e6 {[%emt 0:01:15]} 5. Nf3 {[%emt 0:01:05]} Nf6 {[%emt 0:00:59]} 6. Be2 {[%emt 0:00:32]} Nc6 {[%emt 0:00:54]} 7. Be3 {[%emt 0:00:39] B22: Sicilian: 2 c3} (7. O-O cxd4 8. Nxd4 Bd7 9. Bf3 Qa5 10. Nxc6 Bxc6 11. Bxc6+ bxc6 12. Nd2 Qb5 13. c4 Qb6 14. Qf3 Be7 15. b3 {½-½ (46) Solak,D (2641)-Zhigalko,S (2635) Khanty-Mansiysk 2017}) 7... cxd4 {[%emt 0:01:58]} 8. cxd4 {[%emt 0:01:27]} Bb4+ {[%emt 0:01:51]} 9. Nc3 {[%emt 0:03:46]} Ne4 {[%emt 0:00:59]} 10. Qc2 {[%emt 0:02:51]} Qa5 {[%emt 0:03:00]} 11. O-O {[%emt 0:01:39]} Nxc3 {[%emt 0:00:46]} 12. bxc3 {[%emt 0:00:12]} Bxc3 {[%emt 0:01:33]} 13. Rab1 $146 {[%emt 0:02:25]} ({Predecessor:} 13. Rac1 Bb4 14. Rfd1 Ba3 {½-½ (26) Lilleskog,T-Andreasen,P (2275) Randaberg 1991}) 13... Bb4 {[%emt 0:01:59]} 14. Rfc1 {[%emt 0:03:27]} O-O {[%emt 0:03:17]} 15. Ng5 {[%emt 0:05:38]} g6 {[%emt 0:08:02]} 16. Ne4 {[%emt 0:03:11]} (16. Bf3 $11) 16... Be7 {[%emt 0:00:35]} ({Better is} 16... f5 $15 17. Nd2 f4) 17. Rb5 {[%emt 0:02:38]} Qd8 {[%emt 0:01:49]} 18. Qb2 {[%emt 0:01:59]} (18. Qa4 $11) 18... f5 {[%emt 0:06:13]} 19. d5 {[%emt 0:04:57]} exd5 {[%emt 0:03:52]} 20. Bh6 {[%emt 0:01:27]} Rf7 {[%emt 0:03:34]} 21. Nc5 {[%emt 0:17:12]} (21. Nc3 $17 {was the only defense.}) 21... Bf6 {[%emt 0:00:56]} 22. Qd2 {[%emt 0:03:35]} Nd4 {[%emt 0:01:27]} 23. Rbb1 {[%emt 0:01:49]} Nxe2+ {[%emt 0:01:06]} 24. Qxe2 {[%emt 0:00:07]} Re7 {[%emt 0:02:31]} 25. Qf3 {[%emt 0:01:45]} b6 {[%emt 0:01:36]} 26. Nd3 {[%emt 0:00:43]} Bb7 {[%emt 0:00:56]} 27. Nf4 {[%emt 0:01:01]} Re4 {[%emt 0:11:41]} 28. Qg3 {[%emt 0:07:35]} Bh4 {[%emt 0:01:39]} 29. Qc3 {[%emt 0:02:26]} Qe7 {[%emt 0:03:23]} 30. g3 {[%emt 0:07:01]} Bf6 {[%emt 0:02:53]} 31. Qb3 {[%emt 0:01:02]} Rd8 {[%emt 0:03:22]} 32. Rd1 {[%emt 0:03:19]} Qf7 {[%emt 0:00:22]} 33. f3 {[%emt 0:03:05]} Ree8 {[%emt 0:03:43]} 34. h4 {[%emt 0:01:53]} d4 {[%emt 0:01:42]} 35. Rd3 {[%emt 0:02:17]} Qxb3 {[%emt 0:00:30]} 36. Rbxb3 {[%emt 0:00:06]} Re3 {[%emt 0:04:53]} 37. Nh5 {[%emt 0:06:29]} gxh5 {[%emt 0:06:25]} 38. Bxe3 {[%emt 0:00:08]} dxe3 {[%emt 0:00:12]} 39. Rxd8+ {[%emt 0:00:10]} Bxd8 {[%emt 0:00:11]} 40. Rxe3 {[%emt 0:00:04]} Kf7 {[%emt 0:01:39]} 41. Re5 {[%emt 0:01:23]} Kf6 {[%emt 0:02:22]} 42. Re8 {[%emt 0:00:35]} Be7 {[%emt 0:00:16]} 43. Kg2 {[%emt 0:01:11]} Bd5 {[%emt 0:01:16]} 44. Rh8 {[%emt 0:01:20]} Kg6 {[%emt 0:01:04]} 45. Rc8 {[%emt 0:00:27]} a5 {[%emt 0:00:50]} 46. Rc2 {[%emt 0:01:19]} b5 {[%emt 0:01:36]} 47. Rd2 {[%emt 0:00:41]} Bc4 {[%emt 0:00:26]} 48. Rd7 {[%emt 0:00:40]} Bf6 {[%emt 0:00:51]} 49. Rb7 {[%emt 0:01:23]} a4 {[%emt 0:01:04]} 50. g4 {[%emt 0:01:40]} hxg4 {[%emt 0:00:22]} 51. fxg4 {[%emt 0:00:13]} fxg4 {[%emt 0:00:18]} 52. Kg3 {[%emt 0:00:19]} h5 {[%emt 0:00:14]} 53. a3 {[%emt 0:00:21]} Be5+ {[%emt 0:00:30]} 54. Kf2 $11 {[%emt 0:00:18]} Kf5 {[%emt 0:00:13]} (54... g3+ 55. Kg2 Bd5+ 56. Kh3) 55. Rh7 {[%emt 0:00:30]} Kg6 {[%emt 0:00:28]} 56. Rd7 {[%emt 0:01:03]} Bb2 {[%emt 0:00:58]} 57. Rd6+ {[%emt 0:00:10]} Kf5 {[%emt 0:00:45]} 58. Rh6 {[%emt 0:00:24]} Bf7 {[%emt 0:00:34]} 0-1